Cogmind - Beta 14 @@@ ROGUE MODE // 2024.08.08 @ 12:51:02 Player: weedlord420 Result: Destroyed by G-47 Trooper with Particle Gun Performance ------------- Evolutions (2) 1000 Regions Visited (7) 1400 Robots Destroyed (160) 800 Value Destroyed (5394) 5394 Prototype IDs (14) 280 Alien Tech Used (0) 0 Bonus (1271) 1271 TOTAL SCORE: 10145 Bonus ------- High Alert Combat Kills 617 Follower Combat Kills 466 Entered Garrisons 200 Friendly Fire -12 Cogmind --------- Core Integrity 0/550 Matter 290/300 Energy 265/265 System Corruption 0% Temperature Cool (9) Movement Walking (193) Ox1 Location -8/Materials Parts ------- > --- POWER (1) -------- Improved Ion Engine > --- PROPULSION (3) --- Aluminum Leg Aluminum Leg Titanium Leg > --- UTILITY (5) ------ Large Storage Unit Hardened Heavy Armor Plating Hacking Suite Hacking Suite > --- WEAPON (2) ------- Plasma Cannon Katana > --- INVENTORY (15) --- Micro Nuclear Core Improved Cooling System Machine Analyzer Improved Sensor Array Hardened Heavy Armor Plating Hardened Heavy Armor Plating Hardlight Generator Hacking Suite Authchip [R/Combat] Plasma Cannon Missile Launcher Peak State ------------ > --- POWER ------------ Cooled Ion Engine > --- PROPULSION ------- Light Treads Improved Treads Advanced Treads > --- UTILITY ---------- Large Storage Unit Hardened Medium Armor Plating Hacking Suite Hacking Suite Hacking Suite > --- WEAPON ----------- Heavy EM Shotgun Advanced Beam Rifle > --- INVENTORY -------- Nuclear Core Light Treads Improved Cooling System Improved Cooling System Machine Analyzer Improved Sensor Array Hardened Medium Armor Plating Hardened Medium Armor Plating Hardened Medium Armor Plating Hardened Medium Armor Plating Hardlight Generator Hacking Suite Heavy EM Shotgun Advanced Beam Cannon Missile Launcher [Rating: 34] Favorites ----------- Power Improved Ion Engine Engine Improved Ion Engine Power Core Light Nuclear Core Propulsion Light Treads Treads Light Treads Leg Aluminum Leg Utility Hacking Suite Device Improved Cooling System Storage Large Storage Unit Hackware Hacking Suite Protection Hardened Medium Armor Plating Weapon Improved Assault Rifle Energy Gun Advanced Beam Rifle Energy Cannon Advanced Beam Cannon Ballistic Gun Improved Assault Rifle Launcher Missile Launcher Slashing Weapon Katana Build | -11 -10 -10 -9 -9 -8 -8 -8 ------- Run | Yrd Mat Min Mat Sto Mat Gar Mat Slots Evolved 4 | . . . 2 . 2 . . Power . | . . . . . . . . Propulsion 1 | . . . . . 1 . . Utility 3 | . . . 2 . 1 . . Weapon . | . . . . . . . . Parts Attached 113 | 6 3 2 16 24 24 27 11 Power 16 | 1 1 1 2 2 1 7 1 Engine 12 | 1 1 1 2 2 1 3 1 Core 4 | . . . . . . 4 . Reactor . | . . . . . . . . Propulsion 30 | 2 . 1 5 6 6 6 4 Treads 26 | 2 . 1 5 6 6 6 . Leg 4 | . . . . . . . 4 Wheel . | . . . . . . . . Hover . | . . . . . . . . Flight . | . . . . . . . . Utility 21 | 1 2 . 5 4 5 2 2 Device 4 | . 1 . 2 . . 1 . Storage 2 | 1 1 . . . . . . Processor . | . . . . . . . . Hackware 3 | . . . 2 . 1 . . Protection 12 | . . . 1 4 4 1 2 Artifact . | . . . . . . . . Weapon 46 | 2 . . 4 12 12 12 4 Energy Gun 17 | . . . 2 2 6 6 1 Energy Cannon 8 | . . . 2 3 1 1 1 Ballistic Gun 13 | 2 . . . 7 2 1 1 Ballistic Cannon . | . . . . . . . . Launcher 6 | . . . . . 3 3 . Special Weapon . | . . . . . . . . Impact Weapon . | . . . . . . . . Slashing Weapon 2 | . . . . . . 1 1 Piercing Weapon . | . . . . . . . . Special Melee Weapon . | . . . . . . . . Unidentified Prototypes 6 | . . . 1 2 3 . . Parts Lost 31 | . . 2 3 4 6 12 4 Power 7 | . . 1 1 1 . 4 . Propulsion 12 | . . 1 1 2 3 3 2 Utility 5 | . . . 1 1 1 1 1 Weapon 7 | . . . . . 2 4 1 Highest Loss Streak 4 | . . 2 2 1 3 4 3 To Critical Strikes . | . . . . . . . . Average Slot Usage (%) 95 | . 95 96 95 99 96 93 86 Engine 9 | . 14 12 10 10 9 3 9 Core 1 | . . . . . . 5 . Treads 22 | . 28 26 21 21 24 21 11 Leg 1 | . . . . . . . 14 Device 6 | . 10 14 11 3 . 7 3 Storage 10 | . 14 14 11 11 9 9 9 Hackware 18 | . . . 15 22 26 27 20 Protection 3 | . . . 2 7 9 1 . Energy Gun 3 | . . . 4 3 3 4 1 Energy Cannon 3 | . . . 16 3 2 1 2 Ballistic Gun 11 | . 28 28 1 14 11 2 4 Slashing Weapon 1 | . . . . . . 5 8 Peak Build Rating 34 | 6 8 8 23 24 34 32 33 Average Rating 21 | 4 7 7 20 22 30 28 26 On Entrance 15 | . 6 8 8 23 23 27 30 Naked Turns . | . . . . . . . . Heaviest Build 56 | 13 29 29 37 41 46 44 56 Greatest Support 65 | 40 40 40 43 46 65 63 60 Greatest Overweight (x) 11 | 1 . 1 1 1 1 11 2 Average Overweight (x) . | . . . . . . . . Largest Inventory Capacity 15 | 8 15 15 15 15 15 15 15 Average Capacity 14 | 7 11 15 15 15 15 15 15 Most Carried 15 | 6 11 11 15 15 15 15 15 Average Carried 12 | 1 5 10 13 14 13 13 14 Final Capacity 15 | 8 15 15 15 15 15 15 15 Final Carried 15 | 1 10 10 15 15 14 15 13 Class Distribution -------------------- 47% | Hacker-Mutant 26% | Mutant 25% | Scavenger-Mutant Dominant Class ---------------- Mutant | -10/Materials Mutant | -10/Mines Hacker-Mutant | -9/Materials Hacker-Mutant | -9/Storage Hacker-Mutant | -8/Materials Scavenger-Mutant | -8/Garrison Scavenger-Mutant | -8/Materials Resources | -11 -10 -10 -9 -9 -8 -8 -8 ----------- Run | Yrd Mat Min Mat Sto Mat Gar Mat Matter Collected 2636 | 197 239 169 142 743 626 416 104 Remotely . | . . . . . . . . Salvage Created 5945 | . 485 79 1532 1637 1008 937 267 Parts 375 | . 38 12 87 108 63 54 13 Haulers Intercepted 12 | . 1 . 4 3 4 . . Recyclers Shooed 7 | . 2 . 4 1 . . . Parts Field Recycled . | . . . . . . . . Retrieved Matter . | . . . . . . . . Parts Self-Destructed . | . . . . . . . . Prevented . | . . . . . . . . Kills | -11 -10 -10 -9 -9 -8 -8 -8 ------- Run | Yrd Mat Min Mat Sto Mat Gar Mat Combat Hostiles Destroyed 121 | . 11 5 22 29 20 27 7 Melee 11 | . . . . . . 5 6 Guns 61 | . 11 5 7 19 12 6 1 Cannons 28 | . . . 14 10 1 3 . AOE 17 | . . . . . 6 11 . Classes Destroyed 15 | . 7 . 3 3 1 1 . Worker 7 | . 1 . 2 2 2 . . Builder 2 | . . . . 1 1 . . Tunneler 1 | . 1 . . . . . . Hauler 12 | . 1 . 4 3 4 . . Recycler 5 | . . . 4 1 . . . Mechanic 1 | . . . . 1 . . . Operator 4 | . 1 . 1 2 . . . Watcher 7 | . 1 . 2 2 1 . 1 Swarmer 31 | . 3 5 4 3 4 9 3 Grunt 47 | . 8 . 10 10 6 10 3 Brawler 2 | . . . . 2 . . . Duelist 6 | . . . 2 2 1 1 . Sentry 31 | . . . 6 12 7 5 1 Hunter 2 | . . . . . 2 . . Programmer 2 | . . . . . . 2 . Best Kill Streak 12 | . 4 2 8 12 6 5 3 Combat Bots Only 5 | . 3 2 5 4 4 5 3 Max Kills in Single Turn 3 | . 2 1 2 2 3 3 1 Gunslinging . | . . . . . . . . Exploded 3 | . . . . . 3 3 . Melee 1 | . . . . . . 1 1 Uniques/NPCs Destroyed . | . . . . . . . . Combat | -11 -10 -10 -9 -9 -8 -8 -8 -------- Run | Yrd Mat Min Mat Sto Mat Gar Mat Hostile Shots Fired 721 | . 41 34 85 148 178 162 73 Missed 198 | . 10 6 32 31 60 41 18 Damage Taken 7537 | . 372 362 646 1701 1973 1802 681 Core 1151 | . 78 112 57 340 250 248 66 Absorbed by Shields . | . . . . . . . . Regen/Repaired (Parts) 130 | . . . . . 130 . . Core Remaining (%) 41 | 100 . 24 . . . . . Volleys Fired 433 | . 59 19 65 115 104 65 6 Largest 2 | . 2 2 2 2 2 2 2 Hottest 136 | . 40 40 136 136 129 133 84 Shots Fired 844 | . 118 38 133 226 203 117 9 Gun 618 | . 118 38 40 167 169 77 9 Cannon 209 | . . . 93 59 26 31 . Launcher 17 | . . . . . 8 9 . Special . | . . . . . . . . Kinetic 442 | . 118 38 . 147 133 . 6 Thermal 365 | . . . 133 79 52 98 3 Explosive 17 | . . . . . 8 9 . Electromagnetic 20 | . . . . . 10 10 . Robot Hit Streak 19 | . 11 4 7 12 19 11 2 Robot Miss Streak 8 | . 5 4 6 4 6 8 2 Penetration Max . | . . . . . . . . Secondary Targets 6 | . 1 1 . 1 2 1 . Max Gunslinging Chain 1 | . 1 1 . 1 1 1 . Shots Hit Robots 557 | . 64 20 76 150 153 70 24 Core Hits 275 | . 29 8 39 89 52 48 10 Critical Kills 5 | . 1 . 1 . 1 2 . Critical Parts Destroyed . | . . . . . . . . Critical Strikes 16 | . 1 . 6 . 2 6 1 Burn 7 | . . . 5 . 1 1 . Meltdown 4 | . . . 1 . 1 2 . Destroy 1 | . 1 . . . . . . Sever 4 | . . . . . . 3 1 Melee Attacks 72 | . . . . . . 38 34 Impact . | . . . . . . . . Slashing 72 | . . . . . . 38 34 Piercing . | . . . . . . . . Sneak Attacks 1 | . . . . . . 1 . Combat Hostiles 1 | . . . . . . 1 . Follow-up Attacks . | . . . . . . . . Damage Inflicted 11893 | . 722 232 1623 2566 3181 2881 688 Guns 6087 | . 715 231 422 1855 2111 664 89 Cannons 2335 | . . . 1168 615 267 285 . Explosions 2225 | . . . . 53 761 1411 . Melee 1120 | . . . . . . 521 599 Ramming 126 | . 7 1 33 43 42 . . Kinetic 4155 | . 715 231 . 1602 1548 . 59 Thermal 3943 | . . . 1590 868 613 842 30 Explosive 2225 | . . . . 53 761 1411 . Electromagnetic 324 | . . . . . 217 107 . Impact . | . . . . . . . . Slashing 1120 | . . . . . . 521 599 Piercing . | . . . . . . . . Highest Corruption 4 | . . . 1 4 . . . Average Corruption 2 | . . . 1 3 . . . Corruption Purged . | . . . . . . . . Corruption Blocked . | . . . . . . . . Effects 37 | . . . 10 27 . . . Message Errors 10 | . . . 2 8 . . . Matter Fused 8 | . . . . 8 . . . Heat Flow Errors 6 | . . . 3 3 . . . Energy Discharges 2 | . . . 1 1 . . . Parts Fused 1 | . . . . 1 . . . Data Loss (minor) 5 | . . . 1 4 . . . Data Loss (major) 1 | . . . . 1 . . . Misfires 4 | . . . 3 1 . . . Overload Shots . | . . . . . . . . Overflow Damage 146 | . . . . 24 28 73 21 Projectiles 30 | . . . . 2 28 . . Explosions 95 | . . . . 22 . 73 . Melee 21 | . . . . . . . 21 Knockbacks 1 | . . . . . 1 . . Impact 1 | . . . . . 1 . . Kinetic . | . . . . . . . . Secondary . | . . . . . . . . Self-Inflicted Damage 146 | . . . . . 35 111 . Shots 4 | . . . . . 1 3 . Rammed 18 | . 1 2 4 8 3 . . Targets Rammed 19 | . 1 2 4 8 4 . . Kicked . | . . . . . . . . Crushed 1 | . . . . . 1 . . Highest Temperature 332 | . 12 17 332 322 240 278 5 Average Temperature 75 | . 6 12 61 83 61 121 4 Received Heat Transfer 2643 | . 216 168 180 603 504 657 315 Effects 1 | . . . . 1 . . . Energy Bleed 1 | . . . . 1 . . . Siege Activations . | . . . . . . . . Robots Corrupted 1 | . . . . . 1 . . Combat Hostiles 1 | . . . . . 1 . . Parts Fried 5 | . . . . . 5 . . Impact Corruptions . | . . . . . . . . Robots Melted 4 | . . . 1 . 1 2 . Combat Hostiles 3 | . . . 1 . . 2 . Parts Melted 17 | . . . 10 2 . 5 . Heat Transferred 7684 | . . . 3367 1435 1146 1662 74 Parts Sabotaged . | . . . . . . . . Parts Stolen . | . . . . . . . . Parts Stripped . | . . . . . . . . Power Chain Reactions . | . . . . . . . . Alert | -11 -10 -10 -9 -9 -8 -8 -8 ------- Run | Yrd Mat Min Mat Sto Mat Gar Mat Peak Influence 1454 | . 228 227 343 834 488 1454 789 Initial 708 | . . 46 16 105 352 120 708 Average 394 | . 96 106 178 484 335 717 671 Maximum Alert Level 4 | . 1 1 1 3 2 4 3 Low Security (%) 30 | 100 88 94 39 6 13 3 . Level 1 27 | . 11 5 60 21 57 16 . Level 2 27 | . . . . 65 28 36 53 Level 3 8 | . . . . 6 . 20 46 Level 4 5 | . . . . . . 22 . Level 5 . | . . . . . . . . High Security . | . . . . . . . . Max Security . | . . . . . . . . Squads Dispatched 18 | . 3 . 2 7 1 . 5 Investigation 6 | . 3 . . 1 . . 2 Extermination . | . . . . . . . . Reinforcement 3 | . . . 2 1 . . . Assault 2 | . . . . 2 . . . Garrison 7 | . . . . 3 1 . 3 Intercept . | . . . . . . . . Searches Triggered . | . . . . . . . . Construction Impeded 1 | . . . 1 . . . . Haulers Reinforced . | . . . . . . . . Active Scanning Responses . | . . . . . . . . Cargo Convoy Interrupts . | . . . . . . . . Stealth | -11 -10 -10 -9 -9 -8 -8 -8 --------- Run | Yrd Mat Min Mat Sto Mat Gar Mat Distress Signals 12 | . 1 . 4 4 3 . . Communications Jammed . | . . . . . . . . Distress Signals . | . . . . . . . . Times Spotted 195 | . 20 11 33 45 33 33 20 Peak Tracking Total 7 | . 3 3 7 6 6 4 5 Tactical Retreats 12 | . 1 1 1 1 2 4 2 Traps | -11 -10 -10 -9 -9 -8 -8 -8 ------- Run | Yrd Mat Min Mat Sto Mat Gar Mat Traps Triggered 4 | . 1 . 2 . . . 1 Indirectly . | . . . . . . . . Trap Hack Attempts . | . . . . . . . . Triggered . | . . . . . . . . Disarmed . | . . . . . . . . Reprogrammed . | . . . . . . . . Reused . | . . . . . . . . Traps Extracted . | . . . . . . . . Installed . | . . . . . . . . Triggered . | . . . . . . . . Machines | -11 -10 -10 -9 -9 -8 -8 -8 ---------- Run | Yrd Mat Min Mat Sto Mat Gar Mat Machines Disabled 11 | . . . . 5 1 5 . Max in Single Turn 2 | . . . . 2 1 1 . Garrison Relay 4 | . . . . . . 4 . Machines Repaired . | . . . . . . . . Machines Dismantled . | . . . . . . . . Machines Sabotaged 1 | . 1 . . . . . . Overloaded Fab Kills . | . . . . . . . . Hacking | -11 -10 -10 -9 -9 -8 -8 -8 --------- Run | Yrd Mat Min Mat Sto Mat Gar Mat Machines Accessed 32 | . 6 . 6 5 10 3 2 Terminals 29 | . 6 . 6 4 8 3 2 Fabricators . | . . . . . . . . Repair Stations 1 | . . . . . 1 . . Recycling Units . | . . . . . . . . Scanalyzers . | . . . . . . . . Garrison Access 2 | . . . . 1 1 . . Total Hacks 74 | . 10 . 19 11 26 3 5 Successful 48 | . 9 . 7 6 20 3 3 Failed 26 | . 1 . 12 5 6 . 2 Catastrophic 1 | . 1 . . . . . . Database Lockouts . | . . . . . . . . Manual 46 | . 6 . 16 5 16 . 3 Terminals 69 | . 10 . 19 9 23 3 5 Fabricators . | . . . . . . . . Repair Stations 2 | . . . . . 2 . . Recycling Units . | . . . . . . . . Scanalyzers . | . . . . . . . . Garrison Access 3 | . . . . 2 1 . . Terminal Hacks 31 | . 6 . 4 4 11 3 3 Record 1 | . . . . 1 . . . Robot Analysis 1 | . 1 . . . . . . Prototype ID Bank 4 | . 2 . . . 2 . . Open Door 3 | . . . . 2 . 1 . Branch Access Points 2 | . . . 1 . 1 . . Emergency Access Points 3 | . 1 . 1 . . 1 . Terminal Index 4 | . 1 . 1 . 1 . 1 Garrison Index 1 | . . . . . 1 . . Alert Level 2 | . . . 1 . . . 1 Unreport Threat 4 | . 1 . . . 2 . 1 Locate Traps 4 | . . . . 1 3 . . Registered Components 1 | . . . . . 1 . . Security Stations 1 | . . . . . . 1 . Fabricator Hacks . | . . . . . . . . Repair Station Hacks 2 | . . . . . 2 . . Scan Component 1 | . . . . . 1 . . Repair 1 | . . . . . 1 . . Recycling Unit Hacks . | . . . . . . . . Scanalyzer . | . . . . . . . . Garrison Access Hacks 1 | . . . . . 1 . . Unlock Access 1 | . . . . . 1 . . Unauthorized Hacks 14 | . 3 . 3 2 6 . . Terminals 14 | . 3 . 3 2 6 . . Assimilate 6 | . 1 . 1 1 3 . . Botnet 3 | . . . 1 . 2 . . Operators 4 | . 1 . 1 1 1 . . Sabotage 1 | . 1 . . . . . . Fabricators . | . . . . . . . . Repair Stations . | . . . . . . . . Recycling Units . | . . . . . . . . Scanalyzers . | . . . . . . . . Garrison Access . | . . . . . . . . Data Cores Recovered 2 | . . . 1 1 . . . Used 1 | . . . 1 . . . . Hacking Detections 23 | . 3 . 6 3 7 2 2 Full Trace Events 3 | . 1 . . 1 . . 1 Feedback Events . | . . . . . . . . Feedback Blocked . | . . . . . . . . Robot Schematics Acquired . | . . . . . . . . Robots Built . | . . . . . . . . Authchips . | . . . . . . . . Time . | . . . . . . . . Total Robot Build Rating . | . . . . . . . . Part Schematics Acquired . | . . . . . . . . Parts Built . | . . . . . . . . Authchips . | . . . . . . . . Time . | . . . . . . . . Total Part Build Rating . | . . . . . . . . Parts Repaired 1 | . . . . . 1 . . Time 32 | . . . . . 32 . . Parts Recycled . | . . . . . . . . Recycled Matter . | . . . . . . . . Retrieved Matter . | . . . . . . . . Retrieved Components . | . . . . . . . . Parts Scanalyzed . | . . . . . . . . Part Schematics Acquired . | . . . . . . . . Parts Damaged . | . . . . . . . . Bothacking | -11 -10 -10 -9 -9 -8 -8 -8 ------------ Run | Yrd Mat Min Mat Sto Mat Gar Mat Used RIF Installer . | . . . . . . . . Robots Hacked . | . . . . . . . . Non-combat . | . . . . . . . . Combat . | . . . . . . . . Robot Hacks Applied . | . . . . . . . . Relay Couplers Released 15 | . . . . . . 15 . Machine Destruction 15 | . . . . . . 15 . Fabnet Peak Effective % . | . . . . . . . . Robots Rewired 2 | . . . . . . 2 . Allies Hacked . | . . . . . . . . Hacks Repelled . | . . . . . . . . Allies | -11 -10 -10 -9 -9 -8 -8 -8 -------- Run | Yrd Mat Min Mat Sto Mat Gar Mat Total Allies 9 | . . 3 1 2 1 2 . Largest Group 3 | . . 3 2 2 1 2 . Highest-Rated Group 62 | . . 40 24 62 10 62 . Highest-Rated Ally 31 | . . 16 16 31 10 31 . Total Orders . | . . . . . . . . Ally Attacks 92 | . . 28 7 41 . 16 . Total Damage 1323 | . . 265 80 660 . 318 . Kills 23 | . . 8 2 8 . 5 . Allies Corrupted . | . . . . . . . . Allies Melted . | . . . . . . . . Intel | -11 -10 -10 -9 -9 -8 -8 -8 ------- Run | Yrd Mat Min Mat Sto Mat Gar Mat Robot Analysis Total 1 | . 1 . . . . . . Derelict Logs Recovered 1 | . . 1 . . . . . Drone Launches . | . . . . . . . . Drone Recoveries . | . . . . . . . . Exploration | -11 -10 -10 -9 -9 -8 -8 -8 ------------- Run | Yrd Mat Min Mat Sto Mat Gar Mat Turns Passed 9271 | 66 1058 980 1234 1428 1739 2101 665 Spaces Moved 4319 | 46 501 539 597 538 790 927 381 Core 26 | 21 . . . . . 5 . Treads 4025 | 25 501 539 597 538 790 922 113 Legs 268 | . . . . . . . 268 Wheels . | . . . . . . . . Hover . | . . . . . . . . Flight . | . . . . . . . . Fastest Speed 50 | 50 160 160 160 160 152 160 120 Average Speed 161 | 110 160 166 160 160 159 175 137 Slowest Speed 600 | 160 160 240 240 240 240 600 320 Overloaded Moves . | . . . . . . . . Propulsion Burnouts . | . . . . . . . . Robots Hopped . | . . . . . . . . Cave-ins Triggered . | . . . . . . . . Exploration Rate (%) 65 | 3 86 98 54 83 79 87 30 Regions Visited 7 Branch Regions 2 Pre-discovered Areas 1 | . . 1 . . . . . Known Exits Taken 2 | . . . 1 . 1 . . Unknown Exits Taken 4 | 1 1 1 . 1 . . . Scrap Searched 1 | . . 1 . . . . . Spaces Dug 19 | . . . . . 11 . 8 Terrain Destroyed 141 | . . . . 9 74 50 8 Melee 8 | . . . . . . . 8 Projectile 6 | . . . . . 4 2 . AOE 127 | . . . . 9 70 48 . Terrain Rammed . | . . . . . . . . Walls Destroyed . | . . . . . . . . Machines Disabled . | . . . . . . . . Actions | -11 -10 -10 -9 -9 -8 -8 -8 --------- Run | Yrd Mat Min Mat Sto Mat Gar Mat Total 5674 | 61 651 586 748 872 1070 1222 464 Wait 556 | 4 74 23 37 165 110 122 21 Move 4313 | 45 500 538 596 537 790 926 381 Hop . | . . . . . . . . Pick Up 87 | 6 12 2 16 9 19 19 4 Fast Attach 17 | 1 . . 2 8 1 2 3 Attach 45 | 5 2 2 6 4 8 13 5 Detach 2 | . . . . 1 . . 1 Swap 51 | . 1 . 8 12 15 12 3 Drop 64 | . 2 . 14 13 19 10 6 Fire 433 | . 59 19 65 115 104 65 6 Melee 72 | . . . . . . 38 34 Ram . | . . . . . . . . Kick . | . . . . . . . . Crush 19 | . 1 2 4 8 4 . . Escape Stasis . | . . . . . . . . Rewire 15 | . . . . . . 15 . Trap . | . . . . . . . . Miscellaneous . | . . . . . . . . Route ------- -11/Scrapyard -10/Materials (discovered 3 exits: *Mat x2 / [*Min]) -10/Mines (discovered 3 exits: *Mat x2 / [*Sub]) -9/Materials (discovered 4 exits: *Mat / *Min x2 / *Sto) -9/Storage -8/Materials (discovered 3 exits: [*Fac x2] / Gar) -8/Garrison (discovered 3 exits: *Mat x3) -8/Materials History --------- Turn | Location | Event 3 | -11/Scrapyard | Discovered new exit (range 15) 67 | -11/Scrapyard | Entered Materials 315 | -10/Materials | Build established: Mutant 398 | -10/Materials | Discovered new exit (range 16) 550 | -10/Materials | Discovered new exit (range 16) 635 | -10/Materials | Discovered new exit (range 14) 1125 | -10/Materials | Entered Mines 1139 | -10/Mines | Assisted by bots powering up and referring to "LRC-V3" 1304 | -10/Mines | Received a Rocket Launcher from a helpful Derelict 1613 | -10/Mines | Learned location of Storage (-9) 1775 | -10/Mines | Discovered new exit (range 6) 1778 | -10/Mines | Core integrity fell below 50% 1860 | -10/Mines | Discovered new exit (range 14) 2087 | -10/Mines | Discovered new exit (range 9) 2105 | -10/Mines | Entered Materials 2105 | -9/Materials | Accompanied by 2 allies 2105 | -9/Materials | Evolved 2 slots: Utility x2 2559 | -9/Materials | Discovered new exit (range 14) 2812 | -9/Materials | Build established: Scavenger-Mutant 3093 | -9/Materials | Discovered new exit (range 16) 3202 | -9/Materials | Build established: Hacker-Mutant 3251 | -9/Materials | Discovered new exit (range 9) 3311 | -9/Materials | Identified exit to Mines 3311 | -9/Materials | Identified exit to Storage 3339 | -9/Materials | Entered Storage 3339 | -9/Storage | Accompanied by 1 ally 3732 | -9/Storage | Garrison activated, responded to threat 3967 | -9/Storage | Core integrity fell below 50% 4581 | -9/Storage | Core integrity fell below 20% 4657 | -9/Storage | Met a pair of Derelict thieves 4710 | -9/Storage | Discovered new exit (range 9) 4767 | -9/Storage | Entered Materials 4767 | -8/Materials | Evolved 2 slots: Propulsion x1, Utility x1 5270 | -8/Materials | Discovered new exit (range 11) 5609 | -8/Materials | Repaired Imp. Treads 5927 | -8/Materials | Lost 3 parts (2n1w) 6004 | -8/Materials | Discovered new exit (range 8) 6330 | -8/Materials | Garrison activated, responded to threat 6506 | -8/Materials | Identified exit to Garrison 6506 | -8/Materials | Entered Garrison 6677 | -8/Garrison | Triggered checkpoint 6721 | -8/Garrison | Garrison Relay disabled 6802 | -8/Garrison | Core integrity fell below 50% 6859 | -8/Garrison | Lost 4 parts (1p2n1w) 6918 | -8/Garrison | Triggered checkpoint 7151 | -8/Garrison | Lost 4 parts (1n3w) 7378 | -8/Garrison | Triggered checkpoint 7487 | -8/Garrison | Discovered new exit (range 14) 7589 | -8/Garrison | Garrison Relay disabled 7760 | -8/Garrison | Triggered checkpoint 7761 | -8/Garrison | Build established: Scavenger-Mutant 7766 | -8/Garrison | Core integrity fell below 20% 7832 | -8/Garrison | Garrison Relay disabled 7876 | -8/Garrison | Discovered new exit (range 10) 8018 | -8/Garrison | Triggered checkpoint 8034 | -8/Garrison | Triggered checkpoint 8130 | -8/Garrison | Triggered checkpoint 8254 | -8/Garrison | Garrison Relay disabled 8332 | -8/Garrison | Learned Materials security intel 8352 | -8/Garrison | Triggered checkpoint 8375 | -8/Garrison | Discovered new exit (range 13) 8607 | -8/Garrison | Entered Materials 8633 | -8/Materials | Garrison activated, responded to threat 8893 | -8/Materials | Lost 3 parts (2n1w) 9272 | -8/Materials | Destroyed by G-47 Trooper with Particle Gun Last Messages --------------- 08926_ U-05 Engineer builds a Wall. 08929_ Acquired Lgt. Assault Rifle. 08930_ U-05 Engineer builds a Wall. 08931_ Acquired 10 matter. 08943_ Connecting with Terminal... 08949_ Triggered Alarm Trap. 08949_ An alarm sounds. 08949_ ALERT: Alarm triggered, dispatching investigation squad. 08967_ U-05 Engineer lays Concrete. 08992_ K-01 Serf collects debris. 09000_ Dropped Aluminum Leg. 09001_ Acquired Titanium Leg. 09085_ O-16 Technician: "IFF HANDSHAKE FAILED. SECURING TERMINAL." 09093_ Dropped Gauss Rifle. 09094_ Dropped Lgt. Assault Rifle. 09097_ Acquired Plasma Cannon. 09242_ Acquired 20 matter. 09249_ S-10 Pest destroyed. Map ----- +----------------------------------------------------+ | | | | | ?????????????????????????????????????????????????? | | ?????????????????????????????????????????????????? | | ?????????????????????????????????????????????????? | | ?????????????????????????????????????????????????? | | ?????????????????????????????????????????????????? | | ?????????????????????????????????????????????????? | | ?????????????????????????????????????????????????? | | ?????????????????????????????????????????????????? | | ?????????????????????????????????????????????????? | | ?????????????????????????????????????????????????? | | ?????????????????????????????????????????????????? | | ############?????????????????????????????????????? | | #?????????????????????????????????????? | | +?????????????????????????????????????? | | #?????????????????????????????????????? | | +####### #?????????????????????????????????????? | | #??# #?????????????????????????????????????? | | #??# #?????????????????????????????????????? | | " #??# #?????????????????????????????????????? | | " #??# #?????????????????????????????????????? | | " #??# #?????????????????????????????????????? | | #??# #?????????????????????????????????????? | | ##+##??# ###################+###???????????????? | | ?# #???# ugg g @s%= #????????????? | | ?# #???# k k #????????????? | | ## ##### ####### ########+##### #????????????? | | #?????# #???????????????????????????? | | #?????# #???????????????????????????? | | #?????# #???????????????????????????? | | ###+#######?????# #???????????????????????????? | | # ^ #????????# #???????????????????????????? | | + ] #????????# #???????????????????????????? | | ## #????????# #???????????????????????????? | | ?# """ #???????? #???????????????????????????? | | ?#/ """ #???????? #???????????????????????????? | | ?# """ #???????? #???????????????????????????? | | ##/######??????? #???????????????????????????? | | #???????????? #???????????????????????????? | | ####????????????""" #???????????????????????????? | | #??????????????? "" #???????????????????????????? | | #?????????????????? ????????????????????????????? | | #?????????????????? ????????????????????????????? | | #????????????????????????????????????????????????? | | #????????????????????????????????????????????????? | | #????????????????????????????????????????????????? | | #????????????????????????????????????????????????? | | #????????????????????????????????????????????????? | | ?????????????????????????????????????????????????? | +----------------------------------------------------+ Best States ------------- Heat Dissipation 58 Energy Generation 14 Energy Capacity 280 Matter Stores 300 Matter Capacity 300 Sight Range 16 Terrain Scan Density 10 Armor Coverage 600 Evasion (%) 55 Recoil Reduction 3 Offensive Hacking 30 Authchip Count 1 Item Schematics ----------------- None Robot Schematics ------------------ None Fabricated ------------ Nothing Alien Tech Used ----------------- None Achievements -------------- None Challenges ------------ None Game ------ Seed LayeredAblativeLog Manual? 0 Play Time 01:03:27 Cumulative 67.6 hours Start 2024.08.08 @ 08:05:20 End 2024.08.08 @ 12:51:02 Sessions 3 Manual Loads 0 Difficulty Rogue Special Mode None Game No. 118 Rogue 117 Adventurer 1 Explorer 0 Win Type - Total 0 Types 0/0/0/0/0/0/0/0/0 Lore% 38 Gallery% 45 Achievement% 39 Wizard Run 0 Options --------- Layout 1 ASCII 0 Keyboard 0 Movement Mouse Keybinds 0 Fullscreen 1 Font 48/Smallcaps Map View 50x35 Zoom Use 0% Tactical HUD 1 Map Filters NONE Filters NONE Steam 1 RUN: 09810bf7-2c89-44bf-9841-bc00c341d7ac